bitfinex-derivatives/quotes_SOLF0:USTF0_20240907
["timestamp","ask_amount","ask_price","bid_price","bid_amount"]
[1725721352846,3.9057,128.03,127.99,3.9067]
[1725721355754,218.9456,128.17,128.01,29.99]
[1725721355946,218.9456,128.17,128.08,29.99]
[1725721355947,1.4098,128.17,128.08,29.99]
[1725721356146,1.4098,128.17,128.08,33.97883423]
[1725721356455,1.4098,128.17,128.11,29.99]
[1725721356857,1.4098,128.17,128.13,3.9022]
[1725721357053,1.4098,128.17,128.11,29.99]
[1725721357359,3.9006,128.19,128.14,3.902]
[1725721358059,3.901,128.18,128.14,3.902]
[1725721358456,3.901,128.18,128.13,3.9023]
[1725721358649,5.24713403,128.22,128.11,29.99]
[1725721358852,23.44,128.35,128.19,29.99]
[1725721359051,2.8069,128.31,128.19,33.96712188]
[1725721359246,2.8069,128.31,128.22,29.99]
[1725721360354,2.8069,128.31,128.25,3.8985]
[1725721360754,6.7039,128.31,128.25,3.8985]
[1725721360958,6.7039,128.31,128.24,3.899]
[1725721361358,2.8069,128.31,128.24,3.899]
[1725721361952,38.13223962,128.41,128.19,3.97712188]
[1725721361953,218.9456,128.52,128.3,29.99]
[1725721362153,91.68523329,128.64,128.26,29.99]
[1725721362154,29.99,128.5,128.38,29.99]
[1725721362456,4.287455,128.49,128.39,3.91670733]
[1725721362663,30.29756868,128.48,128.29,148.37651953]
[1725721362860,4.1143,128.51,128.34,29.99]
[1725721362861,29.99,128.46,128.34,29.99]
[1725721363251,33.93026,128.46,128.34,29.99]
[1725721363763,29.99,128.46,128.34,29.99]
[1725721364959,28.89985331,128.72,128.4,29.99]
[1725721364960,104.9456,128.66,128.4,29.99]
[1725721365153,985.69989953,128.76,128.29,983.88005899]
[1725721365154,29.99,128.55,128.3,16.23993063]
[1725721365357,29.99,128.53,128.41,29.99]
[1725721365665,29.99,128.53,128.42,3.88533942]
[1725721366158,35.91,128.56,128.43,35.91]
[1725721366356,0.3066754,128.55,128.43,35.91]
[1725721366557,35.91,128.62,128.46,35.91]
[1725721366757,0.30638512,128.61,128.5,3.8912]
[1725721367058,0.30638512,128.61,128.46,35.91]
[1725721367256,0.30638512,128.61,128.48,35.91]
[1725721367861,0.30638512,128.61,128.5,3.8911]
[1725721368369,0.30638512,128.61,128.49,3.8915]
[1725721368961,36.21638512,128.61,128.48,35.91]
[1725721369158,0.30638512,128.6,128.48,35.91]
[1725721369355,0.30638512,128.6,128.51,39.8008]
[1725721369559,0.30638512,128.59,128.51,35.91]
[1725721369765,132.13089613,128.64,128.51,35.91]
[1725721370067,155.57089613,128.64,128.51,39.8009]
[1725721370268,2.86337848,128.63,128.51,39.8009]
[1725721370567,0.30627848,128.62,128.51,39.8009]
[1725721371063,3.89663514,128.66,128.46,35.91]
[1725721371064,23.44,128.81,128.58,35.91]
[1725721371262,60.6323,128.72,128.58,35.91]
[1725721371559,59.35,128.67,128.53,35.91]
[1725721371865,35.91,128.65,128.53,35.91]
[1725721372061,4.17313529,128.64,128.53,35.91]
[1725721372258,3.89195917,128.65,128.53,35.91]
[1725721372454,0.28596644,128.64,128.53,35.91]
[1725721372770,3.93985862,128.64,128.53,35.91]
[1725721372957,35.91,128.67,128.53,35.91]
[1725721373157,0.28595593,128.66,128.53,35.91]
[1725721374263,912.0,128.87,128.59,35.91]
[1725721374264,0.28596381,128.65,128.59,35.91]
[1725721374465,2.7272,128.7,128.59,35.91]
[1725721374661,4.18956386,128.69,128.59,35.91]
[1725721374862,0.28589,128.68,128.57,35.91]
[1725721375059,0.28589,128.67,128.54,35.91]
[1725721375264,2.7272,128.7,128.59,35.91]
[1725721375568,0.28587382,128.69,128.59,35.91]
[1725721375770,3.8866,128.66,128.57,39.7988]
[1725721375961,2.7272,128.7,128.57,3.8888]
[1725721376158,0.28591268,128.69,128.54,39.72535192]
[1725721376364,0.28591268,128.69,128.57,35.91]
[1725721376573,0.28591268,128.69,128.54,39.72535192]
[1725721377071,3.8869,128.65,128.57,39.799]
[1725721377763,3.887,128.64,128.57,39.799]
[1725721377967,3.887,128.64,128.57,35.91]
[1725721378573,59.35,128.67,128.52,35.91]
[1725721378871,59.35,128.65,128.52,35.91]
[1725721379176,1.65826071,128.64,128.52,35.91]
[1725721379372,0.28596071,128.63,128.52,39.8006]
[1725721379672,0.28596071,128.63,128.52,35.91]
[1725721380469,3.889,128.58,128.5,39.8012]
[1725721380666,23.44,128.63,128.5,35.91]
[1725721380867,59.63601135,128.62,128.5,35.91]
[1725721381067,1.3449,128.61,128.5,35.91]
[1725721381370,2.6614,128.61,128.5,35.91]
[1725721381570,2.6614,128.61,128.52,35.91]
[1725721381771,35.91,128.73,128.59,35.91]
[1725721382074,4.24100145,128.72,128.6,3.95697167]
[1725721382261,4.24100145,128.72,128.61,3.8878]
[1725721382262,3.8858,128.68,128.61,3.8878]
[1725721383470,3.82533634,128.7,128.59,35.91]
[1725721383764,0.2858739,128.69,128.57,35.91]
[1725721383965,0.2858739,128.68,128.57,35.91]
[1725721384173,0.2858739,128.67,128.54,35.91]
[1725721384574,3.8878,128.62,128.55,3.8896]
[1725721384771,6.76524321,128.72,128.61,35.91]
[1725721384970,3.8842,128.74,128.66,3.8863]
[1725721385173,35.91,128.78,128.64,35.91]
[1725721385376,0.28576516,128.77,128.64,35.91]
[1725721385575,3.8842,128.74,128.66,3.8861]
[1725721385772,3.8842,128.74,128.64,35.91]
[1725721385975,35.91,128.76,128.64,35.91]
[1725721386276,0.28574335,128.75,128.64,35.91]
[1725721386573,35.91,128.78,128.64,35.91]
[1725721386770,0.28573022,128.77,128.64,35.91]
[1725721387676,3.8842,128.74,128.67,3.886]
[1725721387872,1.2897,128.76,128.64,35.91]
[1725721388073,1.2897,128.76,128.62,3.86941138]
[1725721388074,0.2857468,128.75,128.65,29.86]
[1725721388275,0.28574409,128.74,128.7,29.86]
[1725721388475,104.9456,129.0,128.73,29.86]
[1725721388673,29.86,128.89,128.76,29.86]
[1725721388867,2.92457165,128.88,128.76,29.86]
[1725721389079,1.3167,128.99,128.82,29.86]
[1725721389285,29.86,128.95,128.81,33.7417]
[1725721389575,0.28541479,128.94,128.81,29.86]
[1725721389782,3.8798,128.88,128.8,3.8819]
[1725721390075,35.81,128.91,128.77,35.81]
[1725721390280,39.72894318,128.91,128.77,35.81]
[1725721390481,3.8797,128.89,128.79,3.8824]
[1725721390677,39.72894318,128.91,128.79,3.8824]
[1725721390980,39.72894318,128.91,128.78,3.8827]
[1725721390981,3.8803,128.87,128.78,3.8827]
[1725721391180,63.16894318,128.91,128.77,35.81]
[1725721391377,0.28540579,128.9,128.77,35.81]
[1725721391572,3.8807,128.85,128.77,35.81]
[1725721391772,2.5974,128.89,128.77,35.81]
[1725721392269,0.28543318,128.88,128.77,35.81]
[1725721392480,0.28543318,128.88,128.75,39.6936]
[1725721392785,3.8812,128.84,128.75,39.6936]
[1725721393168,3.8813,128.83,128.75,39.6936]
[1725721393369,38.4074,128.89,128.75,35.81]
[1725721393675,1.57146375,128.88,128.75,35.81]
[1725721393977,1.57146375,128.88,128.71,3.88474376]
[1725721393978,35.81,128.86,128.72,35.81]
[1725721394186,0.28546375,128.85,128.72,35.81]
[1725721394375,0.28546375,128.85,128.72,39.6945]
[1725721394895,3.8821,128.8,128.72,43.58770481]
[1725721395982,35.81,128.86,128.72,39.70320481]
[1725721396178,35.81,128.84,128.7,35.81]
[1725721396478,4.1725571,128.83,128.7,35.81]
[1725721396682,0.28557209,128.82,128.7,35.81]
[1725721396882,0.28557209,128.82,128.7,39.6951]
[1725721397187,36.09557209,128.82,128.67,3.92122185]
[1725721397395,36.09557209,128.82,128.54,35.81]
[1725721397396,0.28557209,128.81,128.68,39.6957]
[1725721397687,2.91897209,128.81,128.54,35.81]
[1725721397884,35.81,128.77,128.64,35.81]
[1725721398085,0.28557209,128.76,128.66,35.81]
[1725721398285,35.81,128.77,128.66,35.81]
[1725721398583,0.28571658,128.76,128.66,35.81]
[1725721398790,3.8854,128.7,128.63,35.81]
[1725721399286,3.886,128.68,128.61,39.6978]
[1725721399494,59.25,128.75,128.61,35.81]
[1725721399686,0.2858095,128.74,128.61,35.81]
[1725721399889,27.64899761,128.74,128.61,35.81]
[1725721400083,0.2858095,128.73,128.61,35.81]
[1725721400283,35.81,128.72,128.61,35.81]
[1725721400587,0.2858095,128.71,128.61,35.81]
[1725721401294,2.625,128.73,128.61,35.81]
[1725721401481,0.28581404,128.72,128.61,35.81]
[1725721401792,3.8855,128.69,128.61,35.81]
[1725721401985,2.625,128.73,128.61,35.81]
[1725721402184,3.8851,128.71,128.64,35.81]
[1725721402688,3.8843,128.73,128.66,35.81]
[1725721402890,3.8843,128.73,128.66,39.73798817]
[1725721403092,2.625,128.8,128.66,39.73798817]
[1725721403299,0.28567451,128.79,128.66,39.73798817]
[1725721403495,3.8843,128.73,128.66,39.73798817]
[1725721403996,3.8843,128.73,128.66,39.6963]
[1725721404193,2.625,128.8,128.66,39.6963]
[1725721404399,35.81,128.78,128.66,35.81]
[1725721404700,0.28568193,128.77,128.66,35.81]
[1725721405101,3.79975124,128.76,128.66,35.81]
[1725721405595,3.8851,128.71,128.66,35.81]
[1725721406101,3.85261194,128.76,128.66,35.81]
[1725721406305,0.28572837,128.75,128.66,35.81]
[1725721406603,35.81,128.78,128.66,35.81]
[1725721406790,0.28569609,128.77,128.66,35.81]
[1725721407396,0.28569609,128.77,128.66,39.6963]
[1725721407698,0.28569609,128.77,128.66,35.81]
[1725721408003,3.8852,128.7,128.66,35.81]
[1725721409204,3.79031913,128.76,128.66,35.81]
[1725721409407,0.28572614,128.75,128.66,35.81]
[1725721409613,3.8845,128.73,128.67,3.8859]
[1725721409799,60.544,128.8,128.66,39.70100555]
[1725721410004,1.56580422,128.79,128.66,39.70100555]
[1725721410305,3.8844,128.73,128.66,43.58710555]
[1725721410807,1.2801,128.79,128.66,39.6961]
[1725721411018,35.81,128.77,128.66,35.81]
[1725721411311,0.28570336,128.76,128.66,35.81]
[1725721411500,3.80285226,128.75,128.66,35.81]
[1725721411705,35.81,128.77,128.66,35.81]
[1725721411900,0.28570091,128.76,128.66,35.81]
[1725721412115,3.87126706,128.75,128.64,35.81]
[1725721412512,35.81,128.77,128.64,39.6968]
[1725721412711,0.28572216,128.76,128.64,39.6968]
[1725721412906,35.81,128.75,128.64,35.81]
[1725721413113,3.8856,128.69,128.64,35.81]
[1725721413417,3.8856,128.69,128.59,3.93912812]
[1725721413418,59.25,128.75,128.61,35.81]
[1725721413608,1.3565,128.73,128.61,35.81]
[1725721413813,1.3565,128.73,128.62,3.8739881]
[1725721414112,1.3565,128.73,128.64,35.81]
[1725721414521,3.8853,128.7,128.64,39.6968]
[1725721414917,3.8859,128.68,128.64,35.81]
[1725721415111,1.3565,128.73,128.63,3.79401904]
[1725721415311,1.3565,128.73,128.61,35.81]
[1725721415521,37.1665,128.73,128.61,43.50931555]
[1725721415715,1.6759883,128.72,128.59,35.81]
[1725721415909,35.81,128.7,128.59,39.63551275]
[1725721416114,0.28584828,128.69,128.59,39.63551275]
[1725721416612,0.28584828,128.69,128.59,43.52401275]
[1725721417017,3.8871,128.64,128.58,3.8886]
[1725721417719,3.8873,128.63,128.58,3.8886]
[1725721419323,3.8879,128.61,128.57,35.81]
[1725721420020,3.8879,128.61,128.57,29.85]
[1725721420522,3.8877,128.62,128.57,33.739]
[1725721420922,3.8877,128.62,128.58,3.97169457]
[1725721421120,3.8879,128.61,128.58,3.97169457]
[1725721421328,3.8879,128.61,128.57,33.739]
[1725721422124,3.8883,128.6,128.57,29.85]
[1725721422424,31.2576,128.66,128.57,29.85]
[1725721422727,31.2576,128.66,128.55,175.75925068]
[1725721422922,1.4047,128.65,128.55,175.75925068]
[1725721423222,1.4047,128.65,128.56,3.8891]
[1725721423527,1.4047,128.65,128.55,175.75925068]
[1725721423924,1.4076,128.66,128.59,29.85]
[1725721424220,3.88837012,128.68,128.6,3.84830388]
[1725721424426,3.8869,128.65,128.6,3.84830388]
[1725721424822,3.98017238,128.68,128.59,29.85]
[1725721425025,3.8867,128.65,128.6,3.888]
[1725721425330,3.98017238,128.68,128.59,33.65045779]
[1725721425623,3.8862,128.67,128.62,33.7375]
[1725721425823,3.8862,128.67,128.62,29.85]
[1725721426024,3.8862,128.67,128.62,33.78660521]
[1725721426625,3.8864,128.66,128.62,33.78660521]
[1725721428634,3.8862,128.67,128.62,33.78660521]
[1725721429827,1.4047,128.71,128.62,29.85]
[1725721430131,0.28582038,128.7,128.62,29.85]
[1725721430330,3.84585472,128.69,128.62,29.85]
[1725721430635,3.84585472,128.69,128.61,3.82601641]
[1725721430835,3.8869,128.65,128.61,3.82601641]
[1725721432132,29.85,128.7,128.61,3.82601641]
[1725721432436,0.28581679,128.69,128.61,3.82601641]
[1725721432631,3.8862,128.67,128.61,7.71371641]
[1725721432828,29.85,128.7,128.61,7.71371641]
[1725721433028,0.28581023,128.69,128.61,7.71371641]
[1725721433526,3.8865,128.66,128.61,7.71371641]
[1725721433733,29.85,128.7,128.61,3.82601641]
[1725721434030,0.28582497,128.69,128.61,3.82601641]
[1725721434934,1.4047,128.71,128.64,29.85]
[1725721435130,3.8844,128.73,128.68,3.8856]
[1725721435438,2.7152,128.76,128.68,29.85]
[1725721435938,2.7152,128.76,128.68,33.75098895]
[1725721437537,3.884,128.74,128.69,3.8853]
[1725721439434,3.8843,128.73,128.69,3.8853]
[1725721440233,3.8843,128.73,128.68,33.75098895]
[1725721440234,3.8843,128.73,128.68,37.63658895]
[1725721440435,3.8846,128.72,128.68,37.63658895]
[1725721440633,6.68582252,128.76,128.68,3.90098895]
[1725721440832,3.8851,128.71,128.66,33.7362]
[1725721441136,3.8851,128.71,128.66,29.85]
[1725721441335,3.8851,128.71,128.67,3.886]
[1725721441533,6.54826131,128.76,128.68,3.83889018]
[1725721441837,0.28567909,128.75,128.66,33.7361]
[1725721442038,3.8851,128.71,128.66,33.7361]
[1725721442232,59.83826131,128.76,128.62,3.8874]
[1725721442445,29.85,128.74,128.63,29.85]
[1725721442640,0.28570445,128.73,128.63,33.74873319]
[1725721442838,0.28570445,128.73,128.65,29.85]
[1725721443039,2.7152,128.76,128.68,29.85]
[1725721443246,3.884,128.74,128.68,29.85]
[1725721443441,3.884,128.74,128.69,3.8852]
[1725721443629,3.884,128.74,128.7,3.95858343]
[1725721444141,3.8842,128.73,128.7,3.95858343]
[1725721444730,23.44,128.82,128.7,29.85]
[1725721444931,0.28560865,128.81,128.7,33.66595628]
[1725721445134,3.82683791,128.8,128.7,33.66595628]
[1725721445329,3.8832,128.77,128.72,3.8845]
[1725721445737,27.453,128.82,128.7,33.66595628]
[1725721445943,3.8834,128.76,128.71,3.8847]
[1725721446539,2.6595,128.82,128.72,29.85]
[1725721446737,2.6595,128.82,128.74,29.85]
[1725721447137,3.8823,128.8,128.74,33.7338]
[1725721447342,3.8823,128.8,128.74,29.85]
[1725721447643,2.6595,128.82,128.74,29.85]
[1725721448041,3.8824,128.8,128.74,29.85]
[1725721448845,3.8824,128.8,128.75,3.8836]
[1725721449943,3.8825,128.79,128.74,33.7338]
[1725721451752,1.3535,128.88,128.74,29.85]
[1725721451951,53.29,128.86,128.74,33.69205601]
[1725721452246,0.28550704,128.85,128.74,37.57575601]
[1725721452445,0.28550704,128.85,128.74,33.69205601]
[1725721452839,3.8826,128.79,128.74,33.69205601]
[1725721453654,57.08349615,128.86,128.74,33.69205601]
[1725721453655,53.29,128.84,128.74,33.69205601]
[1725721453837,0.28550921,128.83,128.74,33.69205601]
[1725721454038,0.28551237,128.82,128.76,29.85]
[1725721454238,1.2915,128.88,128.78,29.85]
[1725721454455,0.28545382,128.87,128.78,29.85]
[1725721454654,3.8805,128.86,128.8,3.882]
[1725721454841,1.2915,128.88,128.78,29.85]
[1725721455151,3.8805,128.86,128.8,3.882]
[1725721455946,3.8807,128.85,128.8,3.882]
[1725721456147,1.2915,128.88,128.81,3.8818]
[1725721456351,0.28543392,128.87,128.81,3.8818]
[1725721456953,0.28543392,128.87,128.79,3.8823]
[1725721457154,0.28543392,128.87,128.78,29.85]
[1725721457656,3.8812,128.84,128.78,29.85]
[1725721458356,3.8808,128.85,128.79,3.8823]
[1725721459156,3.8809,128.84,128.79,3.8823]
[1725721459655,54.5815,128.88,128.76,33.69633312]
[1725721459859,53.29,128.86,128.74,29.85]
[1725721460159,53.29,128.84,128.74,3.96094587]
[1725721460357,1.67475241,128.83,128.72,29.85]
[1725721460554,0.28545241,128.82,128.73,3.8842]
[1725721460857,0.28545241,128.82,128.72,33.79191779]
[1725721460858,4.24717493,128.82,128.72,33.79191779]
[1725721461158,3.8826,128.79,128.74,3.8839]
[1725721461454,1.2828,128.81,128.72,33.79191779]
[1725721461955,3.8828,128.78,128.73,3.884]
[1725721462157,1.2828,128.81,128.73,3.884]
[1725721462750,3.8826,128.79,128.73,3.884]
[1725721463153,1.2828,128.81,128.72,3.94191779]
[1725721463361,0.28554969,128.8,128.72,3.94191779]
[1725721463659,1.2828,128.81,128.71,3.8847]
[1725721463853,0.28555069,128.8,128.71,3.8847]
[1725721464358,3.8832,128.77,128.71,3.8847]
[1725721466051,3.8835,128.76,128.71,3.8847]
[1725721466754,3.8837,128.75,128.71,3.8847]
[1725721472055,3.8842,128.74,128.71,3.8847]
[1725721473262,3.8842,128.74,128.71,3.8848]
[1725721474157,3.8837,128.75,128.72,3.8845]
[1725721475364,1.2828,128.81,128.72,3.8845]
[1725721475660,0.28557387,128.8,128.72,3.8845]
[1725721476360,3.8835,128.76,128.72,3.8845]
[1725721476666,3.8835,128.76,128.7,33.70983742]
[1725721476667,1.2828,128.81,128.71,3.8846]
[1725721476962,0.28557369,128.8,128.71,3.8846]
[1725721477163,30.13557369,128.8,128.71,3.8846]
[1725721477365,29.85,128.8,128.7,37.59483742]
[1725721477550,0.2856064,128.79,128.7,37.59483742]
[1725721477755,3.8838,128.75,128.7,37.59483742]
[1725721478362,3.884,128.74,128.7,37.59483742]
[1725721478561,3.884,128.74,128.7,3.85983742]
[1725721478764,3.884,128.74,128.69,3.8853]
[1725721478959,1.3261,128.77,128.69,3.8853]
[1725721479466,1.3261,128.77,128.7,3.8058519]
[1725721479652,3.8842,128.74,128.7,3.8058519]
[1725721480256,3.8843,128.73,128.7,3.8058519]
[1725721480467,25.2061,128.77,128.7,23.88]
[1725721480468,1.3261,128.77,128.7,23.88]
[1725721480661,1.3261,128.77,128.7,27.81682016]
[1725721481066,3.8834,128.76,128.71,3.8846]
[1725721482455,3.8834,128.76,128.72,3.8845]
[1725721482864,3.8834,128.76,128.7,33.76682016]
[1725721483461,3.8837,128.75,128.71,3.8847]
[1725721483861,3.8837,128.75,128.71,3.8848]
[1725721484267,3.8836,128.76,128.71,3.8848]
[1725721485470,1.3261,128.77,128.7,37.65182016]
[1725721485663,1.3261,128.77,128.7,33.76682016]
[1725721485863,3.8838,128.75,128.7,33.76682016]
[1725721486063,1.3261,128.77,128.71,3.8847]
[1725721486266,1.2828,128.81,128.72,29.83]
[1725721486465,3.8828,128.78,128.72,29.83]
[1725721486677,3.8828,128.78,128.74,3.8838]
[1725721487568,3.8828,128.78,128.73,3.8841]
[1725721488265,2.5952,128.81,128.72,29.83]
[1725721488266,2.5952,128.81,128.72,33.7144]
[1725721488466,0.28555936,128.8,128.72,33.7144]
[1725721488671,3.8832,128.77,128.72,33.7144]
[1725721489563,3.8834,128.76,128.72,33.7144]
[1725721489962,2.5952,128.81,128.7,33.76682016]
[1725721490166,30.11555822,128.8,128.64,29.83]
[1725721490469,0.28555822,128.79,128.68,29.83]
[1725721490669,3.8841,128.74,128.69,3.8853]
[1725721492171,3.8841,128.74,128.7,3.8851]
[1725721494870,29.83,128.8,128.68,3.86722088]
[1725721495072,29.83,128.78,128.66,29.83]
[1725721495270,29.83,128.78,128.66,33.74380654]
[1725721495271,0.2856364,128.77,128.66,33.74380654]
[1725721495473,3.8851,128.71,128.66,37.62990654]
[1725721495872,3.89826014,128.74,128.66,37.62990654]
[1725721496067,2.8005,128.73,128.66,37.62990654]
[1725721496277,3.8853,128.7,128.66,37.62990654]
[1725721496470,2.8005,128.73,128.66,33.74380654]
[1725721496665,2.8005,128.73,128.66,3.91380654]
[1725721496871,3.8856,128.69,128.63,29.83]
[1725721497164,3.8856,128.69,128.65,3.8866]
[1725721497570,3.8856,128.69,128.64,3.8868]
[1725721497767,3.8858,128.68,128.64,3.8868]
[1725721499976,3.8861,128.67,128.64,3.8868]
[1725721500183,3.8861,128.67,128.63,33.79122306]
[1725721500184,2.8005,128.73,128.65,3.8866]
[1725721500385,3.8856,128.69,128.65,33.7166]
[1725721500882,2.8005,128.73,128.65,33.7166]
[1725721501374,2.8005,128.73,128.64,3.8869]
[1725721501576,3.8867,128.65,128.61,29.83]
[1725721501977,3.8867,128.65,128.61,33.7177]
[1725721502171,3.887,128.64,128.61,33.7177]
[1725721502379,29.83,128.68,128.57,29.83]
[1725721502680,29.83,128.64,128.56,3.94270939]
[1725721502881,33.69418176,128.64,128.56,3.94270939]
[1725721503087,33.69418176,128.64,128.55,145.90925068]
[1725721503487,33.69418176,128.64,128.55,149.82591378]
[1725721503488,0.28591053,128.63,128.55,149.82591378]
[1725721503892,3.8886,128.59,128.55,149.82591378]
[1725721504391,3.8888,128.58,128.55,145.90925068]
[1725721504990,23.9,128.62,128.52,23.9]
[1725721505190,0.2859745,128.61,128.52,27.81767818]
[1725721505390,2.9831745,128.61,128.52,27.81767818]
[1725721505599,24.1859745,128.6,128.51,23.9]
[1725721505888,24.1859745,128.59,128.51,23.9]
[1725721506080,3.8894,128.56,128.51,23.9]
[1725721506399,23.9,128.59,128.51,23.9]
[1725721506592,0.28605467,128.58,128.51,23.9]
[1725721506788,3.89,128.54,128.51,23.9]
[1725721506993,3.89,128.54,128.5,3.90406162]
[1725721507492,3.89,128.54,128.49,23.9]
[1725721507690,3.8903,128.53,128.49,23.9]
[1725721508888,3.8898,128.55,128.5,3.91678343]
[1725721509083,23.9,128.58,128.5,3.891]
[1725721509289,3.8888,128.58,128.51,23.9]
[1725721509493,3.8888,128.58,128.52,3.94091546]
[1725721509691,3.8888,128.58,128.52,7.83131546]
[1725721510390,25.1772,128.6,128.54,23.9]
[1725721510391,1.2772,128.6,128.54,23.9]
[1725721510797,5.1656,128.6,128.54,27.7898]
[1725721510992,1.2772,128.6,128.54,27.7898]
[1725721511191,1.2772,128.6,128.54,31.69179283]
[1725721511392,3.8885,128.59,128.54,31.69179283]
[1725721511591,1.2772,128.6,128.54,27.80199283]
[1725721512195,1.2772,128.6,128.55,3.8895]
[1725721512603,5.1654,128.6,128.55,3.8895]
[1725721519117,3.8885,128.59,128.54,31.69189283]
[1725721519610,3.8885,128.59,128.54,7.79189283]
[1725721520309,5.1655,128.6,128.55,3.8896]
[1725721520516,5.1655,128.6,128.54,27.80199283]
[1725721521018,5.1655,128.6,128.55,3.8895]
[1725721521316,3.8886,128.59,128.54,27.80199283]
[1725721522023,3.8886,128.59,128.55,3.8896]
[1725721522311,1.2772,128.6,128.55,3.8896]
[1725721522908,3.8886,128.59,128.55,3.8896]
[1725721523103,1.2772,128.6,128.54,31.69179283]
[1725721523504,3.8887,128.59,128.54,31.69179283]
[1725721523912,1.2772,128.6,128.54,31.69179283]
[1725721524213,1.2772,128.6,128.54,7.79179283]
[1725721524410,1.2772,128.6,128.53,23.9]
[1725721524411,1.2772,128.6,128.53,27.7902]
[1725721524912,1.2772,128.6,128.53,31.73900174]
[1725721525110,3.8888,128.58,128.53,31.73900174]
[1725721525507,1.2772,128.6,128.53,31.73900174]
[1725721525508,3.8893,128.57,128.53,31.73900174]
[1725721526813,3.8894,128.56,128.53,27.84880174]
[1725721527215,1.2772,128.6,128.53,27.84880174]
[1725721527515,3.8892,128.57,128.53,31.73900174]
[1725721528713,3.889,128.58,128.54,3.89]
[1725721528908,1.2772,128.6,128.53,27.84880174]
[1725721529215,6.5851,128.61,128.57,3.889]
[1725721529611,2.6972,128.61,128.57,3.889]
[1725721530112,6.5851,128.61,128.57,3.889]
[1725721531111,23.9,128.6,128.53,3.94880174]
[1725721531312,25.2289,128.6,128.51,23.9]
[1725721531512,3.8891,128.58,128.53,3.8902]
[1725721531814,1.3289,128.6,128.53,3.8902]
[1725721532216,3.889,128.58,128.53,3.8902]
[1725721532816,3.8885,128.59,128.54,3.8897]
[1725721533005,3.8885,128.59,128.51,27.86794522]
[1725721533211,1.3289,128.6,128.51,27.86794522]
[1725721533718,3.8888,128.58,128.54,3.8898]
[1725721534512,3.8891,128.57,128.53,3.8901]
[1725721534820,1.3289,128.6,128.51,27.86794522]
[1725721535019,3.8893,128.57,128.53,3.8901]
[1725721537321,3.8889,128.58,128.54,3.8898]
[1725721537524,1.3289,128.6,128.51,27.86794522]
[1725721537919,3.8891,128.57,128.53,3.8901]
[1725721542116,3.8889,128.58,128.54,3.8898]
[1725721542927,3.8886,128.59,128.55,3.8897]
[1725721543223,26.5972,128.61,128.55,23.9]
[1725721543224,2.6972,128.61,128.55,23.9]
[1725721543529,5.27218176,128.64,128.53,23.9]
[1725721543837,1.408,128.64,128.57,23.9]
[1725721544033,2.6709,128.67,128.59,23.9]
[1725721544328,2.6709,128.67,128.61,23.9]
[1725721544529,1.408,128.69,128.63,23.9]
[1725721545029,2.7561,128.71,128.65,23.9]
[1725721545728,2.7561,128.71,128.66,3.8863]
[1725721546335,2.7561,128.71,128.65,27.7866]
[1725721546830,2.7561,128.71,128.66,3.8863]
[1725721547232,2.7561,128.71,128.65,23.9]
[1725721547422,2.7561,128.71,128.63,31.75991234]
[1725721547731,2.7561,128.71,128.63,27.7872]
[1725721548230,2.7561,128.71,128.63,31.61211794]
[1725721549934,24.18578262,128.7,128.62,3.8875]
[1725721550135,23.9,128.7,128.62,3.8875]
[1725721550631,23.9,128.7,128.62,3.91083184]